bitfinex/quotes_ETHUSD_20250620
["timestamp","ask_amount","ask_price","bid_price","bid_amount"]
[1750460939823,0.0587,2396.9,2396.8,4.17213972]
[1750460939985,0.11085321,2396.9,2396.8,4.17213972]
[1750460940585,0.05215321,2396.9,2396.7,4.17230784]
[1750460940782,0.0587,2396.8,2396.7,4.17230784]
[1750460941722,0.0587,2396.7,2396.5,4.17265173]
[1750460941896,7.122,2396.6,2396.5,4.17265173]
[1750460942098,0.0587,2397.3,2396.6,0.7946]
[1750460942298,7.127,2397.3,2397.2,4.17153345]
[1750460942499,2.0107,2397.5,2397.4,4.17118545]
[1750460942809,12.06284056,2397.5,2397.4,4.17118545]
[1750460943124,12.0107,2397.5,2397.4,4.17118545]
[1750460943627,13.94518,2397.5,2397.3,4.17130562]
[1750460943827,13.94518,2397.5,2397.3,4.17135944]
[1750460943828,0.11084392,2397.4,2397.3,4.17135944]
[1750460944596,0.05214392,2397.4,2397.3,4.17135944]
[1750460944798,0.11084392,2397.4,2397.3,4.17135944]
[1750460947900,0.05214392,2397.4,2397.3,4.17135944]
[1750460948635,10.0,2397.5,2397.4,4.17118545]
[1750460948800,17.1777,2397.5,2397.4,4.17118545]
[1750460949138,7.1777,2397.5,2397.4,4.17118545]
[1750460950699,7.56185524,2397.5,2397.4,4.17118545]
[1750460950903,7.1777,2397.5,2397.4,4.17118545]
[1750460951119,17.56191646,2397.5,2397.4,4.17118545]
[1750460951449,10.44291646,2397.5,2397.4,4.17118545]
[1750460951744,17.54791646,2397.5,2397.4,4.17118545]
[1750460951902,10.44291646,2397.5,2397.4,4.17118545]
[1750460952110,17.54391646,2397.5,2397.4,4.17118545]
[1750460952308,17.1597,2397.5,2397.4,4.17118545]
[1750460952544,17.54484444,2397.5,2397.4,4.17118545]
[1750460952845,17.7771406,2397.5,2397.4,4.17118545]
[1750460953204,17.77714094,2397.5,2397.4,4.17118545]
[1750460953537,17.77714077,2397.5,2397.4,4.17118545]
[1750460953716,17.77713943,2397.5,2397.4,4.17118545]
[1750460953902,10.0,2397.4,2397.3,4.17119989]
[1750460954102,0.44461787,2397.4,2397.3,4.17119989]
[1750460954304,0.43806046,2397.4,2397.3,4.17119989]
[1750460954504,0.43805918,2397.4,2397.3,4.17119989]
[1750460955335,0.49675918,2397.4,2397.3,4.17119989]
[1750460955732,0.11084259,2397.4,2397.3,4.17119989]
[1750460956044,0.49675853,2397.4,2397.3,4.17119989]
[1750460956742,0.4969973,2397.4,2397.3,4.17119989]
[1750460957131,0.49699654,2397.4,2397.3,4.17119989]
[1750460957848,0.72886698,2397.4,2397.3,4.17119989]
[1750460958445,0.72886885,2397.4,2397.3,4.17119989]
[1750460958650,7.81086713,2397.4,2397.3,4.17119989]
[1750460958854,7.57899654,2397.4,2397.3,4.17119989]
[1750460959008,7.81085955,2397.4,2397.3,4.17119989]
[1750460959331,0.67016098,2397.4,2397.3,4.17119989]
[1750460959529,0.67016098,2397.4,2397.3,5.83831169]
[1750460959530,0.38615395,2397.4,2397.3,5.83831169]
[1750460959731,0.05213421,2398.1,2398.0,4.17014178]
[1750460959921,17.7505961,2398.1,2398.0,4.17014178]
[1750460960117,17.69846189,2398.1,2398.0,4.17014178]
[1750460960743,17.75716189,2398.1,2398.0,4.17014178]
[1750460960948,10.67716189,2398.1,2398.0,4.17014178]
[1750460961145,7.69745407,2398.1,2398.0,4.17014178]
[1750460961351,7.69745628,2398.1,2398.0,4.17014178]
[1750460961507,7.69745628,2398.1,2397.5,4.17084887]
[1750460961508,0.0587,2397.7,2397.5,4.17084887]
[1750460961711,7.52124089,2397.6,2397.5,4.17084887]
[1750460962237,17.52106232,2397.6,2397.5,4.17084887]
[1750460962439,17.1347,2397.6,2397.5,4.17084887]
[1750460962642,17.75303582,2397.6,2397.5,4.17084887]
[1750460962916,17.75302182,2397.6,2397.5,4.17084887]
[1750460963664,17.75303198,2397.6,2397.5,4.17084887]
[1750460964369,17.52115329,2397.6,2397.5,4.17084887]
[1750460965556,17.1347,2397.6,2397.5,4.17084887]
[1750460969551,0.0587,2397.5,2397.4,4.17104443]
[1750460969745,0.11084001,2397.5,2397.4,4.17104443]
[1750460970827,10.0,2397.6,2397.5,4.17101147]
[1750460971025,10.0,2397.6,2397.5,4.92631147]
[1750460972045,10.0601,2397.6,2397.5,4.17101147]
[1750460972240,10.0,2397.6,2397.4,4.17105802]
[1750460972442,7.19224056,2397.5,2397.4,4.17105802]
[1750460973774,10.0601,2397.4,2396.9,0.7635]
[1750460973978,7.19024598,2397.3,2397.2,4.17153345]
[1750460976179,7.078,2397.3,2397.2,4.17153345]
[1750460976378,7.078,2397.3,2397.2,5.00585504]
[1750460976581,0.05214557,2397.6,2397.5,4.17101147]
[1750460976768,17.075,2397.6,2397.5,4.17101147]
[1750460977081,17.1351,2397.6,2397.5,4.17101147]
[1750460977967,17.075,2397.6,2397.5,4.17101147]
[1750460979876,0.8658,2398.2,2398.1,4.16996789]
[1750460980078,7.99292773,2398.2,2398.1,4.16996789]
[1750460980286,18.54292773,2398.2,2398.1,4.16996789]
[1750460980459,18.4908,2398.2,2398.1,4.16996789]
[1750460981555,11.4158,2398.2,2398.1,4.16996789]
[1750460981905,17.1351,2398.2,2398.1,4.16996789]
[1750460982053,1.92,2398.3,2398.2,4.16979401]
[1750460982384,1.97212336,2398.6,2398.5,4.16927246]
[1750460982584,1.9801,2398.6,2398.5,4.16927246]
[1750460982789,0.0601,2399.2,2398.4,8.33889258]
[1750460982972,0.849,2399.2,2399.1,4.16822975]
[1750460983175,7.1351,2399.2,2399.1,4.16822975]
[1750460983581,7.18720532,2399.2,2399.1,4.16822975]
[1750460984088,10.11220532,2399.2,2399.1,4.16822975]
[1750460984291,17.55594879,2399.2,2399.1,4.16822975]
[1750460984496,7.55594879,2399.2,2399.1,4.16822975]
[1750460985065,0.11220531,2399.2,2399.1,4.16822975]
[1750460985265,7.18620531,2399.2,2399.1,4.16822975]
[1750460986189,7.18620531,2399.2,2399.0,4.16838337]
[1750460986190,0.55,2399.0,2398.4,0.7921]
[1750460986360,0.6101,2399.0,2398.9,4.1685196]
[1750460986555,17.6831,2399.0,2398.9,4.1685196]
[1750460988606,10.55,2399.0,2398.9,4.1685196]
[1750460988775,17.073,2399.0,2398.9,4.1685196]
[1750460990577,10.0,2399.0,2398.9,4.9603196]
[1750460990777,17.072,2399.0,2398.9,4.9603196]
[1750460991373,17.1321,2399.0,2398.9,4.1685196]
[1750460994185,17.1321,2399.0,2398.9,4.1685196]
[1750460996920,0.0601,2398.8,2398.3,0.8113]
[1750460997085,17.6811,2398.7,2398.6,4.16905743]
[1750460997290,19.6001,2398.7,2398.6,4.16905743]
[1750460998192,10.0,2398.6,2398.5,4.16919245]
[1750460998490,0.0601,2398.6,2398.5,4.16919245]
[1750460998687,0.6101,2398.4,2398.3,4.1695467]
[1750460998898,17.73222419,2398.4,2398.3,4.1695467]
[1750460999088,10.0601,2398.3,2398.2,4.16970634]
[1750460999503,0.0601,2398.3,2398.2,4.16970634]
[1750460999901,0.05212468,2398.4,2398.3,4.16962014]
[1750461000107,17.071,2398.4,2398.3,4.16962014]
[1750461000985,2.5281,2398.7,2398.6,4.16909864]
[1750461001299,9.5981,2398.7,2398.6,4.16909864]
[1750461001692,9.0481,2398.7,2398.6,4.16909864]
[1750461003115,9.5981,2398.7,2398.6,4.16909864]
[1750461003282,19.5981,2398.7,2398.6,4.16909864]
[1750461004408,19.538,2398.7,2398.6,4.16909864]
[1750461004599,19.598,2398.7,2398.6,4.16909864]
[1750461005099,20.20899018,2398.7,2398.6,4.16909864]
[1750461006516,0.8758,2398.4,2398.3,4.16959879]
[1750461006693,10.92792259,2398.4,2398.3,4.16959879]
[1750461006892,19.8628,2398.4,2398.3,4.16959879]
[1750461007211,0.06,2398.3,2398.2,4.1697036]
[1750461007382,10.06,2398.3,2398.2,4.1697036]
[1750461007916,10.06,2398.3,2397.8,0.8035]
[1750461007917,0.55,2398.2,2397.8,0.8035]
[1750461008121,17.18113156,2398.1,2398.0,4.17004188]
[1750461008319,17.129,2398.1,2398.0,4.17004188]
[1750461009431,7.069,2398.1,2398.0,4.17004188]
[1750461009595,12.468,2398.4,2398.3,4.16962014]
[1750461009798,18.987,2398.4,2398.3,4.16962014]
[1750461009997,0.06,2398.2,2398.1,4.16996789]
[1750461010202,0.06,2398.3,2398.2,4.16979401]
[1750461010403,0.55,2397.7,2397.3,0.7711]
[1750461010600,0.06,2397.4,2397.1,0.7711]
[1750461010813,17.069,2397.3,2397.2,4.17140248]
[1750461011023,10.0,2397.2,2397.1,4.17159933]
[1750461011323,0.06,2397.2,2397.1,4.17159933]
[1750461011533,10.06,2397.2,2397.1,4.17159933]
[1750461013625,0.41255694,2397.4,2397.3,4.17135944]
[1750461013832,0.05214568,2397.7,2397.6,4.1708375]
[1750461014028,0.55,2397.5,2397.3,4.17124363]
[1750461014208,17.13,2397.4,2397.3,4.17124363]
[1750461014532,17.07,2397.4,2397.3,4.17124363]
[1750461015503,10.0,2397.3,2397.0,4.99896846]
[1750461015703,17.07,2397.4,2396.9,4.17203467]
[1750461015704,10.0,2397.1,2396.9,4.17203467]
[1750461015914,7.18215198,2397.0,2396.9,4.17203467]
[1750461016427,7.18215198,2397.0,2396.8,4.17214695]
[1750461016638,7.12215198,2397.0,2396.2,0.828]
[1750461016795,0.06,2396.8,2396.3,4.17293082]
[1750461017124,0.55,2396.6,2396.4,4.17290952]
[1750461017323,7.18216341,2396.5,2396.3,4.17304353]
[1750461017529,0.06,2396.4,2396.3,4.17304353]
[1750461017905,0.55,2396.6,2396.3,4.17304353]
[1750461017906,0.05216449,2396.6,2396.5,4.17275192]
[1750461018099,7.071,2396.6,2396.5,4.17275192]
[1750461018424,7.12316003,2396.8,2396.7,4.17240372]
[1750461018744,7.18316003,2396.8,2396.4,5.00081304]
[1750461019051,0.06,2396.7,2396.6,4.17248686]
[1750461019346,0.55,2396.6,2396.3,4.17300545]
[1750461019497,0.06,2396.4,2396.2,4.17314901]
[1750461019991,0.06,2396.3,2396.1,4.17333836]
[1750461020197,0.06,2396.2,2396.1,4.17333836]
[1750461020437,0.06,2396.2,2395.7,0.828]
[1750461020636,0.06,2396.1,2396.0,4.17359095]
[1750461021228,0.06,2396.0,2395.7,0.828]
[1750461021396,0.11217431,2396.0,2395.7,5.0019922]
[1750461021597,0.11217431,2396.0,2395.9,4.1737969]
[1750461022347,7.071,2396.2,2396.1,4.17344852]
[1750461022511,17.071,2396.2,2396.1,4.17344852]
[1750461023038,17.131,2396.2,2396.1,4.17344852]
[1750461023359,0.06,2396.1,2396.0,4.1735449]
[1750461023561,0.11217157,2396.1,2396.0,4.1735449]
[1750461023845,0.05217157,2396.1,2396.0,4.1735449]
[1750461024045,7.071,2396.4,2396.2,0.828]
[1750461024199,10.05216848,2396.3,2396.2,5.00125088]
[1750461024401,10.0,2396.3,2396.2,5.00125088]
[1750461025107,10.06,2396.3,2396.2,4.17325088]
[1750461025765,0.06,2396.2,2396.0,4.17348338]
[1750461025966,10.0521716,2396.2,2396.0,4.17348338]
[1750461026114,0.06,2396.1,2396.0,4.17348338]
[1750461026469,0.11217148,2396.1,2396.0,4.17348338]
[1750461026767,10.0,2396.0,2395.6,0.828]
[1750461026987,7.89917507,2395.9,2395.3,0.828]
[1750461027118,7.89917507,2395.9,2395.6,4.17430529]
[1750461027469,0.55,2395.8,2395.5,4.17441536]
[1750461027618,7.12418287,2395.7,2395.5,4.17441536]
[1750461027826,0.06,2395.6,2395.5,4.17441536]
[1750461028266,0.775,2395.9,2395.7,4.1741208]
[1750461028424,11.92,2396.0,2395.8,0.828]
[1750461028425,10.0,2396.0,2395.8,0.828]
[1750461028768,10.0,2396.0,2395.9,4.1737969]
[1750461033892,7.072,2396.1,2395.8,5.00194658]
[1750461033893,0.75,2396.8,2395.8,0.828]
[1750461034097,0.05216184,2396.7,2396.6,4.17257384]
[1750461034277,0.11175846,2396.9,2396.8,4.17222963]
[1750461034477,7.73475846,2396.9,2396.8,4.17222963]
[1750461034710,7.18475846,2396.9,2396.8,4.17222963]
[1750461034915,7.18475846,2396.9,2396.6,4.17256943]
[1750461035095,0.0596,2396.8,2396.4,4.17276116]
[1750461035415,0.0596,2396.6,2396.3,4.17300995]
[1750461035569,0.60216302,2396.7,2396.4,4.17290013]
[1750461035570,17.1326,2396.5,2396.4,4.17290013]
[1750461035767,17.1326,2396.5,2396.2,4.17326616]
[1750461035768,10.0,2396.4,2396.3,4.17301211]
[1750461035970,17.1326,2396.5,2396.4,4.17292605]
[1750461036584,17.1326,2396.5,2396.3,4.17305092]
[1750461036784,0.0596,2396.3,2396.2,4.17324848]
[1750461037020,7.1316,2396.3,2396.2,4.17324848]
[1750461037191,17.18376823,2396.3,2396.2,4.17324848]
[1750461037400,17.1316,2396.3,2396.2,4.17324848]
[1750461039778,7.90432694,2396.3,2396.2,4.17324848]
[1750461040227,7.51796347,2396.3,2396.2,4.17324848]
[1750461040389,7.90431906,2396.3,2396.2,4.17324848]
[1750461041203,7.84471906,2396.3,2396.1,4.17337629]
[1750461041398,0.88448835,2396.2,2396.1,4.17337629]
[1750461041581,0.88454865,2396.2,2396.1,4.17337629]
[1750461042127,0.88487594,2396.2,2396.1,4.17337629]
[1750461042478,0.88488055,2396.2,2396.1,4.17337629]
[1750461042715,0.0596,2396.1,2395.9,4.1736816]
[1750461042933,0.05216929,2396.2,2396.0,4.1736227]
[1750461043076,7.45865885,2396.1,2396.0,4.1736227]
[1750461043281,7.84531342,2396.1,2396.0,4.1736227]
[1750461043591,7.45865885,2396.1,2396.0,4.1736227]
[1750461043792,7.84531417,2396.1,2396.0,4.1736227]
[1750461044319,7.84533511,2396.1,2396.0,4.1736227]
[1750461044525,7.45863786,2396.1,2396.0,4.1736227]
[1750461044684,0.77395577,2396.1,2396.0,4.9917227]
[1750461044885,7.12317135,2396.3,2396.2,4.17327435]
[1750461045120,17.89781203,2396.3,2396.2,4.17327435]
[1750461045320,17.84564068,2396.3,2396.2,4.17327435]
[1750461045888,17.84568058,2396.3,2396.2,4.17327435]
[1750461046979,17.45834029,2396.3,2396.2,4.17327435]
[1750461047182,17.84611544,2396.3,2396.2,4.17327435]
[1750461047629,17.90571544,2396.3,2396.2,4.17327435]
[1750461047827,18.07877612,2396.3,2396.1,4.17332227]
[1750461048127,0.88731008,2396.2,2396.1,4.17332227]
[1750461048489,0.88731338,2396.2,2396.1,4.17332227]
[1750461048690,0.11176925,2396.2,2396.1,4.17332227]
[1750461048901,0.88735192,2396.2,2396.1,4.17332227]
[1750461049902,0.88735742,2396.2,2396.1,4.17332227]
[1750461050513,0.88736293,2396.2,2396.1,4.17332227]
[1750461050719,0.88731309,2396.2,2396.1,4.17332227]
[1750461051029,0.88731253,2396.2,2396.1,4.17332227]
[1750461051332,0.88712015,2396.2,2396.1,4.17332227]
[1750461051825,0.77520784,2396.2,2396.1,4.17332227]
[1750461052029,0.77520784,2396.2,2396.1,5.08982108]
[1750461052446,0.7753314,2396.2,2396.1,5.08982108]
[1750461052627,0.38760392,2396.2,2396.1,16.96711283]
[1750461052807,0.8162,2397.7,2396.7,0.8239]
[1750461053007,1.0607012,2397.6,2397.5,4.17101147]
[1750461053441,18.1903012,2397.6,2397.5,4.17101147]
[1750461053645,1.06816019,2397.6,2397.5,4.17101147]
[1750461053945,0.0596,2397.5,2397.3,4.17121234]
[1750461054117,0.81336902,2397.5,2397.4,4.17117564]
[1750461054311,1.87814482,2397.5,2397.4,4.17117564]
[1750461054507,1.06486738,2397.5,2397.4,4.17117564]
[1750461054930,11.06486738,2397.5,2397.4,4.17117564]
[1750461055118,10.83209278,2397.5,2397.4,4.17117564]
[1750461055722,10.83127246,2397.5,2397.4,4.17117564]
[1750461056125,10.83127194,2397.5,2397.4,4.17117564]
[1750461056322,0.77167194,2397.5,2397.4,4.99507564]
[1750461056550,7.1276,2398.1,2397.5,4.17101147]
[1750461056749,10.7708386,2398.0,2397.9,4.17023248]
[1750461056941,0.8304386,2398.0,2397.9,4.17023248]
[1750461057338,10.83046082,2398.0,2397.9,4.17023248]
[1750461057655,10.0596,2398.0,2397.9,4.17023248]
[1750461057835,0.0596,2398.0,2397.9,4.17023248]
[1750461058036,7.12013011,2398.1,2398.0,4.17014178]
[1750461058257,17.45437095,2398.1,2398.0,4.17014178]
[1750461058552,10.38637095,2398.1,2398.0,4.17014178]
[1750461058916,10.0,2398.1,2398.0,4.17014178]
[1750461059118,17.067,2398.1,2398.0,4.17014178]
[1750461060055,0.55,2398.7,2398.0,4.17014178]
[1750461060056,0.8073,2398.7,2398.6,4.16909864]
[1750461060222,8.70145262,2398.7,2398.6,4.16909864]
[1750461060418,7.5121621,2398.7,2398.6,4.16909864]
[1750461060656,7.17871532,2398.7,2398.6,4.16909864]
[1750461060954,17.1256,2398.7,2398.6,4.16909864]
[1750461061161,10.0596,2398.7,2398.6,4.16909864]
[1750461061336,17.1256,2398.7,2398.6,4.16909864]
[1750461061725,7.1256,2398.7,2398.6,4.16909864]
[1750461062334,10.0,2398.8,2398.7,4.16892483]
[1750461062534,7.616,2398.8,2398.7,4.16892483]
[1750461062740,7.6776,2398.8,2398.7,4.16892483]
[1750461063136,0.7504,2399.1,2398.9,4.16857726]
[1750461063137,0.812,2399.1,2398.9,4.16857726]
[1750461063327,1.9756,2399.3,2399.2,4.16805601]
[1750461063549,0.0616,2399.2,2398.9,4.1684726]
[1750461063738,0.11370845,2399.1,2399.0,4.1684035]
[1750461064062,7.1256,2399.1,2399.0,4.1684035]
[1750461064263,17.1256,2399.1,2399.0,4.1684035]
[1750461064564,17.1256,2399.1,2398.9,4.16849322]
[1750461064565,17.064,2399.1,2398.9,4.16849322]
[1750461064862,0.0616,2398.8,2398.5,4.169222]
[1750461065037,17.1256,2398.7,2398.6,4.16900593]
[1750461065433,10.0,2398.7,2398.6,4.97640593]
[1750461065943,7.063,2398.9,2398.8,4.16875104]
[1750461066164,17.063,2398.9,2398.8,4.16875104]
[1750461066846,10.0,2398.9,2398.8,5.50015705]
[1750461067255,0.55,2399.4,2399.1,4.16813023]
[1750461067256,10.0,2399.4,2399.1,4.16813023]
[1750461067436,10.0616,2399.2,2399.0,4.16827202]
[1750461067635,0.11370669,2399.1,2399.0,4.16827202]
[1750461067820,0.11370669,2399.1,2398.0,0.7913]
[1750461067821,0.0616,2398.7,2398.0,0.7913]
[1750461068026,17.063,2398.6,2398.5,4.16927246]
[1750461068365,10.0,2398.6,2398.5,4.96057246]
[1750461070069,1.914,2399.2,2399.1,4.16822975]
[1750461070271,8.9876,2399.2,2399.1,4.16822975]
[1750461070477,18.9876,2399.2,2399.1,4.16822975]
[1750461070678,8.9876,2399.2,2399.1,4.16822975]
[1750461071177,8.9876,2399.2,2398.5,0.7913]
[1750461071377,0.11370975,2399.1,2398.9,4.16846159]
[1750461071580,0.0616,2399.0,2398.9,4.16846159]
[1750461072551,0.11370842,2399.0,2398.9,4.16846159]
[1750461074394,10.0,2399.1,2399.0,4.1684035]
[1750461074395,7.061,2399.1,2399.0,4.1684035]
[1750461074576,10.0616,2399.6,2399.5,4.1675349]
[1750461074787,17.1226,2399.6,2399.5,4.1675349]
[1750461074999,7.1226,2399.6,2399.5,4.1675349]
[1750461075301,17.1226,2399.6,2399.5,4.1675349]
[1750461075499,17.6726,2399.6,2399.5,4.1675349]
[1750461077177,17.6726,2399.6,2399.4,4.16762276]
[1750461077380,0.6116,2399.5,2399.4,4.16762276]
[1750461077898,0.0616,2399.3,2398.6,0.7901]
[1750461078081,0.0616,2399.1,2398.6,0.7901]
[1750461078273,7.1216,2399.0,2398.8,4.16875104]
[1750461078459,0.11370946,2398.9,2398.8,4.16875104]
[1750461078658,0.0616,2399.1,2399.0,4.1684035]
[1750461078858,7.1216,2399.1,2399.0,4.1684035]
[1750461079302,17.1216,2399.1,2399.0,4.1684035]
[1750461082923,11.3156,2399.0,2398.5,4.16913955]
[1750461083125,0.0616,2398.5,2398.1,4.16986044]
[1750461083329,9.522,2398.4,2398.0,4.17011372]
[1750461083619,0.7656,2398.2,2397.9,4.17026966]
[1750461083834,10.0,2398.0,2397.7,4.17056]
[1750461084122,7.17273335,2397.9,2397.8,4.17048961]
[1750461085927,0.7656,2398.2,2398.1,4.16996789]
[1750461086113,7.93832692,2398.2,2398.1,4.16996789]
[1750461086424,10.0616,2398.1,2398.0,4.17006546]
[1750461087131,0.0616,2398.0,2397.9,4.17023642]
[1750461087423,17.17373061,2398.0,2397.9,4.17023642]
[1750461087640,17.1216,2398.0,2397.9,4.17023642]
[1750461087803,0.0616,2397.9,2397.8,4.17040888]
[1750461088005,0.1137317,2397.9,2397.8,4.17040888]
[1750461088202,0.1137317,2397.9,2397.4,0.83425153]
[1750461088203,10.0521317,2397.9,2397.4,0.83425153]
[1750461088438,0.0616,2397.7,2397.3,4.95792021]
[1750461088624,0.0616,2397.7,2397.6,4.1708375]
[1750461088790,7.1206,2397.7,2397.6,4.1708375]
[1750461090734,17.1206,2397.7,2397.6,4.1708375]
[1750461093128,7.1206,2397.7,2397.6,4.1708375]
[1750461093337,7.16946159,2397.7,2397.6,4.1708375]
[1750461094658,7.16946159,2397.7,2397.2,4.17151641]
[1750461094659,30.0,2397.5,2397.2,4.17153194]
[1750461094958,7.11214508,2397.4,2397.3,4.17119494]
[1750461095426,7.16984508,2397.4,2397.3,4.17119494]
[1750461099028,0.55,2397.1,2396.8,4.17207326]
[1750461099228,17.72085461,2397.0,2396.9,4.17205557]
[1750461099452,17.6687,2397.0,2396.9,4.17205557]
[1750461105240,17.611,2397.0,2396.8,4.17216548]
[1750461105440,0.10985453,2396.9,2396.8,4.17216548]
[1750461106971,0.05215453,2396.9,2396.7,4.1723337]
[1750461107178,17.1187,2396.8,2396.7,4.1723337]
[1750461107692,17.1187,2396.8,2396.2,4.17319342]
[1750461107693,0.55,2396.5,2396.2,4.17319342]
[1750461107997,7.17086589,2396.4,2396.3,4.17310019]
[1750461108196,17.17086589,2396.4,2396.3,4.17310019]
[1750461108395,17.1187,2396.4,2396.3,4.17310019]
[1750461108697,17.061,2396.4,2396.2,4.17318529]
[1750461108898,0.10986671,2396.3,2396.2,4.17318529]
[1750461109197,0.0577,2396.3,2396.2,4.17318529]
[1750461109654,10.0,2396.4,2396.3,4.17310019]
[1750461109855,17.061,2396.4,2396.3,4.17310019]
[1750461110055,17.061,2396.4,2396.0,4.1734787]
[1750461110304,17.061,2396.4,2395.9,0.8185]
[1750461110305,0.0577,2396.2,2396.1,4.17330443]
[1750461110551,7.1187,2396.2,2396.1,4.17330443]
[1750461113987,7.061,2396.2,2396.0,4.17355119]
[1750461114197,10.10986955,2396.1,2396.0,4.17355119]
[1750461114492,10.0577,2396.1,2396.0,4.17355119]
[1750461118364,10.0,2396.1,2396.0,4.1736227]
[1750461118570,10.0,2396.1,2395.9,4.17371564]
[1750461118571,10.0577,2396.1,2395.9,4.17371564]
[1750461118881,17.1177,2396.0,2395.9,4.17371564]
[1750461120114,17.06,2396.0,2395.9,4.17371564]
[1750461120429,0.0577,2395.8,2395.7,4.17413302]
[1750461120713,0.0577,2395.7,2395.2,0.7744]
[1750461120914,0.0577,2395.5,2395.2,4.94929216]
[1750461121076,17.1177,2395.4,2395.0,0.7744]
[1750461121277,0.10988496,2395.3,2395.2,4.1750167]
[1750461122213,0.0577,2395.3,2395.2,4.1750167]
[1750461122515,0.44356743,2395.3,2395.2,4.1750167]
[1750461122709,0.0577,2395.3,2395.2,4.1750167]
[1750461122882,0.10988844,2395.3,2395.2,4.1750167]
[1750461124181,0.05218844,2395.3,2395.2,4.1750167]
[1750461124596,0.8193,2396.2,2395.3,4.17484239]
[1750461124812,7.49744866,2396.1,2396.0,4.1736227]
[1750461125012,7.49744866,2396.1,2395.6,4.17417004]
[1750461125013,0.55,2395.9,2395.6,4.17417004]
[1750461125200,7.11217972,2395.8,2395.4,4.17451386]
[1750461125390,7.1166,2395.7,2395.6,4.17429462]
[1750461125794,0.0566,2395.6,2395.5,4.17440463]
[1750461126000,0.10878211,2395.6,2395.5,4.17440463]
[1750461126515,0.4940368,2395.6,2395.5,4.17440463]
[1750461126705,0.10878211,2395.6,2395.5,4.17440463]
[1750461127016,7.06,2395.7,2395.6,4.17431958]
[1750461127205,7.55406475,2395.7,2395.6,4.17431958]
[1750461128121,0.0566,2395.5,2395.4,4.1745467]
[1750461128317,17.16878449,2395.5,2395.4,4.1745467]
[1750461128613,17.50188494,2395.5,2395.4,4.1745467]
[1750461129220,17.50212237,2395.5,2395.4,4.1745467]
[1750461129818,17.50212432,2395.5,2395.4,4.1745467]
[1750461130223,17.50210768,2395.5,2395.4,4.1745467]
[1750461131023,17.50217416,2395.5,2395.4,4.1745467]
[1750461132286,17.50216935,2395.5,2395.4,4.1745467]
[1750461132722,17.44556935,2395.5,2395.2,4.17489127]
[1750461132900,0.0566,2395.3,2395.2,4.17489127]
[1750461133099,17.50216935,2395.3,2395.2,4.17489127]
[1750461133626,17.50230171,2395.3,2395.2,4.17489127]
[1750461133820,17.50230396,2395.3,2395.2,4.17489127]
[1750461134215,17.1166,2395.3,2395.2,4.17489127]
[1750461134705,17.50229593,2395.3,2395.2,4.17489127]
[1750461134905,17.50229535,2395.3,2395.2,4.17489127]
[1750461135105,17.1166,2395.3,2395.2,4.17489127]
[1750461135309,10.0566,2395.2,2395.1,4.17519101]
[1750461135521,0.0566,2395.2,2395.1,4.17519101]
[1750461135726,0.05219032,2395.4,2395.3,4.17484239]
[1750461135993,0.0566,2396.1,2395.3,2.07473143]
[1750461136232,2.505,2396.6,2395.3,2.07473143]
[1750461136233,0.38609058,2396.0,2395.9,4.1737969]
[1750461136537,0.10877104,2396.3,2396.2,4.17327435]
[1750461136845,0.0566,2396.2,2395.9,0.8012]
[1750461137011,0.0566,2396.2,2395.7,4.17403158]
[1750461137012,7.1156,2396.1,2396.0,4.17361397]
[1750461137193,7.1156,2396.1,2395.6,0.8012]
[1750461137194,7.1156,2396.1,2395.9,4.17371037]
[1750461137397,0.10877278,2396.0,2395.9,4.17371037]
[1750461138029,17.16777278,2396.0,2395.9,4.17371037]
[1750461138338,17.1156,2396.0,2395.9,4.17371037]
[1750461138693,17.1146,2396.0,2395.9,4.17371037]
[1750461139797,17.1146,2396.0,2395.7,4.17413799]
[1750461140002,10.10877319,2395.9,2395.8,4.1738928]
[1750461140230,0.0566,2395.9,2395.8,4.1738928]
[1750461140435,0.10877647,2395.9,2395.8,4.1738928]
[1750461140740,0.10877647,2395.9,2395.4,0.7761]
[1750461140741,0.4950245,2395.9,2395.4,0.7761]
[1750461141043,0.4950245,2395.9,2392.8,13.21012149]
[1750461141044,0.0566,2395.7,2395.6,4.17428062]
[1750461141196,0.10878039,2395.7,2395.6,4.17428062]
[1750461141396,0.0566,2395.7,2395.6,4.17428062]
[1750461141626,17.058,2395.8,2395.7,4.17414534]
[1750461141834,17.058,2395.8,2395.7,4.93054534]
[1750461143740,17.058,2395.8,2395.7,4.17414534]
[1750461145588,10.0566,2395.7,2395.6,4.1742351]
[1750461145753,0.0566,2395.7,2395.6,4.1742351]
[1750461145947,0.10878034,2395.7,2395.6,4.1742351]
[1750461147376,10.10878034,2395.7,2395.6,4.1742351]
[1750461147575,10.0566,2395.7,2395.6,4.1742351]
[1750461148084,11.9666,2395.7,2395.6,4.1742351]
[1750461148944,12.3535059,2395.7,2395.6,4.1742351]
[1750461149143,11.9666,2395.7,2395.6,4.1742351]
[1750461149339,0.0566,2395.6,2395.5,4.17440418]
[1750461149670,7.55173342,2395.6,2395.5,4.17440418]
[1750461149978,7.55178684,2395.6,2395.5,4.17440418]
[1750461150146,7.16478139,2395.6,2395.5,4.17440418]
[1750461152396,7.10818139,2395.6,2395.5,4.17440418]
[1750461152601,7.16978139,2395.6,2395.5,4.17440418]
[1750461153267,4.72351861,2396.1,2395.7,4.17414534]
[1750461153268,1.91,2395.9,2395.7,4.17414534]
[1750461153468,0.6116,2396.1,2396.0,4.1736227]
[1750461153469,0.0616,2396.1,2396.0,4.1736227]
[1750461153677,7.1176,2396.1,2396.0,4.1736227]
[1750461153870,7.056,2396.1,2396.0,4.1736227]
[1750461154084,17.056,2396.1,2396.0,4.1736227]
[1750461154254,1.907,2396.3,2396.2,4.17327435]
[1750461154460,9.0236,2396.3,2396.2,4.17327435]
[1750461154855,19.0236,2396.3,2396.2,4.17327435]
[1750461155392,19.0236,2396.3,2396.0,4.1735775]
[1750461155393,0.55,2396.1,2396.0,4.1735775]
[1750461155597,0.6637738,2396.1,2396.0,4.1735775]
[1750461155793,0.6116,2396.1,2396.0,4.1735775]
[1750461156595,0.0616,2396.1,2396.0,4.1735775]
[1750461157302,7.055,2396.1,2396.0,4.1735775]
[1750461157527,10.0616,2396.3,2396.1,4.17344852]
[1750461157706,10.0616,2396.3,2396.2,4.17327435]
[1750461158227,17.1156,2396.3,2396.2,4.17327435]
[1750461161936,17.1156,2396.3,2396.1,4.17336401]